{"text_format":"1","workbook":"xlsx","n_sheets":3,"sheets":["Лист1","toCSV","Аббревиатуры ОО"],"not_rendered":{"charts":0,"images":0,"macros":1,"external_links":0,"defined_names":1,"comments":0,"pivot_tables":0},"unopened":[],"bounds":{"document_bytes":16777216,"sheet_cells":100000,"rows_first":2000,"rows_last":500,"rows_between":2000,"halvings":0,"cell_chars":16384,"cell_head_chars":4096},"cells_cut":0,"cells_raw":0,"read":"whole","date_system":"1900"}

{"sheet":"Лист1","index":0,"n_rows":28,"n_cols":12,"rows_kept":28,"cut":false,"hidden":false,"merged":[[4,7,5,12],[6,7,16,12]]}
["username","password","firstname","lastname","email",null,null,"Аббревиатура ОО:",null,null,null,"ККБМК"]
[{"$f":"LOWER(CONCATENATE($L$2,\"_\",$L$1,\"_\",ТРАНСЛИТ(D2),\"_\",ТРАНСЛИТ(LEFT(C2,1))))","v":"2026_ккбмк_vasilij_p"},null,"Пупкин","Василий","vasya@pupk.in",null,null,"Текущий год:",null,null,null,2026]
["2026_ккбмк__"]
["2026_ккбмк__"]
["2026_ккбмк__",null,null,null,null,null,null,"Внимание!"]
["2026_ккбмк__"]
["2026_ккбмк__",null,null,null,null,null,null,"При открытии файла разрешить макросы.\nЗаполняете только жёлтые поля, как в примере (строка 2). Выберите из списка своё ОО (ячейка L2).\nЛогины генерируются автоматически.\nПосле набора данных, можно сгенерировать пароли (это необязательно), запустив макрос сочетанием клавиш Ctrl+з (в русской раскладке).\nПосле заполнения желтых полей файл направляется организаторам для формирования доступов. После обработки Вам будет отправлен файл с актуальными логинами и паролями."]
["2026_ккбмк__"]
["2026_ккбмк__"]
["2026_ккбмк__"]
["2026_ккбмк__"]
["2026_ккбмк__"]
["2026_ккбмк__"]
["2026_ккбмк__"]
["2026_ккбмк__"]
["2026_ккбмк__"]
["2026_ккбмк__"]
["2026_ккбмк__"]
["2026_ккбмк__"]
["2026_ккбмк__"]
["2026_ккбмк__"]
["2026_ккбмк__"]
["2026_ккбмк__"]
["2026_ккбмк__"]
["2026_ккбмк__"]
["2026_ккбмк__"]
["2026_ккбмк__"]
["2026_ккбмк__"]

{"sheet":"toCSV","index":1,"n_rows":0,"n_cols":0,"rows_kept":0,"cut":false,"hidden":false,"merged":[]}

{"sheet":"Аббревиатуры ОО","index":2,"n_rows":10,"n_cols":1,"rows_kept":10,"cut":false,"hidden":false,"merged":[]}
["ККБМК"]
["АМК"]
["БМК"]
["ГМК"]
["ЕМК"]
["КМК"]
["КущМК"]
["ЛМК"]
["НМК"]
["СМК"]